Workbook

Sheet TOC
A5: Exam 5: Reserving E-02
A9: Question | B9: Sheet | C9: Type
A10: 1 | B10: 1 | C10: Ratio method (additive) for S/S
A11: 2 | B11: 2 | C11: Apply reinsurance treaties and calculate net unpaid claims
A12: 3 | B12: 3 | C12: Additive or Multiplicative approach for ALAE
A13: 4 | B13: 4 | C13: Classical/Kittel approach for ULAE
A14: 5 | B14: 5 | C14: Congor & Nolibos approach for ULAE

Sheet 1
A1: Reading: | C1: Friedland 14 (S/S) | M1: Return to TOC | N1: | | AB1: |
A2: Model: | C2: 2016.Fall #24(b) | N2: | | AB2: |
A3: Problem Type: | C3: Ratio method (additive) for S/S | N3: | | O3: Step 1: | P3: Ratio of cumulative paid S/S to cumulative paid claims: | AB3: |
N4: | | AB4: |
A5: Problem | C5: Use the | D5: additive | F5: approach to estimate the | I5: unpaid | J5: S/S | K5: for AY | L5: 2020 | N5: | | P5: AY | Q5: 12 | R5: 24 | S5: 36 | T5: 48 | AB5: |
N6: | | P6: =P7-1 -> 2017 | Q6: =ROUND(J10/D10,4) -> 0.0289 | R6: =ROUND(K10/E10,4) -> 0.0357 | S6: =ROUND(L10/F10,4) -> 0.0352 | T6: =ROUND(M10/G10,4) -> 0.0355 | AB6: |
C7: cumulative paid claims: | I7: cumulative paid SS: | N7: | | P7: =P8-1 -> 2018 | Q7: =ROUND(J11/D11,4) -> 0.0251 | R7: =ROUND(K11/E11,4) -> 0.0296 | S7: =ROUND(L11/F11,4) -> 0.0262 | AB7: |
N8: | | P8: =P9-1 -> 2019 | Q8: =ROUND(J12/D12,4) -> 0.0259 | R8: =ROUND(K12/E12,4) -> 0.0419 | AB8: |
C9: AY | D9: 12 | E9: 24 | F9: 36 | G9: 48 | I9: AY | J9: 12 | K9: 24 | L9: 36 | M9: 48 | N9: | | P9: =C13 -> 2020 | Q9: =ROUND(J13/D13,4) -> 0.021 | AB9: |
C10: 2017 | D10: 6600 | E10: 21800 | F10: 31100 | G10: 34600 | I10: 2017 | J10: 191 | K10: 778 | L10: 1095 | M10: 1229 | N10: | | AB10: |
C11: 2018 | D11: 6500 | E11: 21500 | F11: 33900 | I11: 2018 | J11: 163 | K11: 637 | L11: 887 | N11: | | O11: Step 2: | P11: Development triangle (multiplicative): | AB11: |
C12: 2019 | D12: 7900 | E12: 21600 | I12: 2019 | J12: 205 | K12: 904 | N12: | | AB12: |
C13: 2020 | D13: 7300 | I13: 2020 | J13: 153 | N13: | | P13: AY | Q13: =Q5&"-"&R5 -> 12-24 | R13: =R5&"-"&S5 -> 24-36 | S13: =S5&"-"&T5 -> 36-48 | T13: =T5&"-"&H9 -> 48- | AB13: |
N14: | | P14: =P6 -> 2017 | Q14: =ROUND(IF($D$5="additive",R6-Q6,R6/Q6),4) -> 0.0068 | R14: =ROUND(IF($D$5="additive",S6-R6,S6/R6),4) -> -0.0005 | S14: =ROUND(IF($D$5="additive",T6-S6,T6/S6),4) -> 0.0003 | U14: <=== | V14: =IF(D5="additive","ADDITIVE ", "MULTIPLICATIVE ") & "development" -> ADDITIVE development | AB14: |
C15: selected ultimate claims by AY (using paid claim development) | N15: | | P15: =P7 -> 2018 | Q15: =ROUND(IF($D$5="additive",R7-Q7,R7/Q7),4) -> 0.0045 | R15: =ROUND(IF($D$5="additive",S7-R7,S7/R7),4) -> -0.0034 | AB15: |
N16: | | P16: =P8 -> 2019 | Q16: =ROUND(IF($D$5="additive",R8-Q8,R8/Q8),4) -> 0.016 | AB16: |
C17: AY | D17: ult clms | E17: <=== | F17: sometimes you are not given the ultimate claims | N17: | | P17: =C13 -> 2020 | AB17: |
C18: 2017 | D18: 34600 | F18: - you would then have to calculate them using an appropriate method | N18: | | P18: selected | Q18: =ROUND(AVERAGE(Q14:Q16),4) -> 0.0091 | R18: =ROUND(AVERAGE(R14:R16),4) -> -0.002 | S18: =ROUND(AVERAGE(S14:S16),4) -> 0.0003 | T18: =IF($D$5="additive",0,1) -> 0 | U18: <=== | V18: tail = 1.0 | AB18: |
C19: 2018 | D19: 37715 | F19: - see 2016.Spring #23 | N19: | | P19: cum | Q19: =ROUND(IF($D$5="additive",Q18+R19,Q18*R19),4) -> 0.0074 | R19: =ROUND(IF($D$5="additive",R18+S19,R18*S19),4) -> -0.0017 | S19: =ROUND(IF($D$5="additive",S18+T19,S18*T19),4) -> 0.0003 | T19: =T18 -> 0 | U19: <=== | V19: selected x (previous cum) | AB19: |
C20: 2019 | D20: 36087 | N20: | | P20: Ult Ratio | Q20: =ROUND(IF($D$5="additive",Q9+Q$19,Q9*Q$19),4) -> 0.0284 | R20: =ROUND(IF($D$5="additive",R8+R$19,R8*R$19),4) -> 0.0402 | S20: =ROUND(IF($D$5="additive",S7+S$19,S7*S$19),4) -> 0.0265 | T20: =ROUND(IF($D$5="additive",T6+T$19,T6*T$19),4) -> 0.0355 | U20: <=== | V20: cum x (latest diagonal from Step 1) | AB20: |
C21: 2020 | D21: 37990 | N21: | | AB21: |
N22: | | P22: AY | Q22: =C21 -> 2020 | R22: =C20 -> 2019 | S22: =C19 -> 2018 | T22: =C18 -> 2017 | U22: <=== | V22: given information | AB22: |
C23: When selecting development factors, you may select a SIMPLE AVERAGE in this problem. | N23: | | P23: ult clms | Q23: =D21 -> 37990 | R23: =D20 -> 36087 | S23: =D19 -> 37715 | T23: =D18 -> 34600 | V23: (repeated here for convenience) | AB23: |
N24: | | P24: pd S/S | Q24: =J13 -> 153 | R24: =K12 -> 904 | S24: =L11 -> 887 | T24: =M10 -> 1229 | AB24: |
C25: * There is no dvelopment beyond 48 months. | N25: | | AB25: |
N26: | | O26: Step 3: | P26: Ultimate S/S | R26: = | S26: (Ultimate Ratio) | U26: x | V26: (Ultimate Claims) | AB26: |
N27: | | P27: Unpad S/S | R27: = | S27: (Ultimate S/S) | U27: - | V27: (Paid S/S) | AB27: |
N28: | | AB28: |
N29: | | P29: AY | Q29: Ult S/S | R29: UnPd S/S | AB29: |
N30: | | P30: =C18 -> 2017 | Q30: =IFERROR(T20*D18,"n/a") -> 1228.3 | R30: =IFERROR(Q30-M10,"n/a") -> -0.7 | AB30: |
N31: | | P31: =C19 -> 2018 | Q31: =IFERROR(S20*D19,"n/a") -> 999.4475 | R31: =IFERROR(Q31-L11,"n/a") -> 112.4475 | AB31: |
N32: | | P32: =C20 -> 2019 | Q32: =IFERROR(R20*D20,"n/a") -> 1450.6974 | R32: =IFERROR(Q32-K12,"n/a") -> 546.6974 | AB32: |
N33: | | P33: =C13 -> 2020 | Q33: =IFERROR(Q20*D21,"--") -> 1078.916 | R33: =IFERROR(Q33-J13,"--") -> 925.916 | AB33: |
N34: | | Q34: =SUM(Q30:Q33) -> 4757.3609 | R34: =SUM(R30:R33) -> 1584.3609 | AB34: |
N35: | | AB35: |
N36: | | O36: Step 4: | P36: =I5 -> unpaid | Q36: =J5 -> S/S | R36: =K5 -> for AY | S36: =L5 -> 2020 | T36: = | U36: =VLOOKUP(S36,P32:R33,IF(P36="ultimate",2,3),FALSE) -> 925.916 | V36: <=== | W36: final answer | AB36: |
N37: | | AB37: |
N38: | | AB38: |
N39: | | O39: For COMPARISON, the S/S ultimate and unpaid values using standard paid S/S development are: | AB39: |
N40: | | AB40: |
N41: | | P41: Development method: | T41: % Difference: [ (ratio method) - (development method) ] / (ratio method) | AB41: |
N42: | | AB42: |
N43: | | P43: AY | Q43: Ult S/S | R43: UnPd S/S | T43: Ult S/S | U43: UnPd S/S | AB43: |
N44: | | P44: =P30 -> 2017 | Q44: =Y$98 -> 1229 | R44: =IFERROR(Q44-M10,"n/a") -> 0 | T44: =IF(ABS(Q30)<0.1,"-",(Q30-Q44)/Q30) -> -0.0005698933485 | U44: 1 | AB44: |
N45: | | P45: =P31 -> 2018 | Q45: =X98 -> 995.5461187 | R45: =IFERROR(Q45-L11,"n/a") -> 108.5461187 | T45: 0.003903537983 | U45: 0.03469513576 | AB45: |
N46: | | P46: =P32 -> 2019 | Q46: =W98 -> 1420.436336 | R46: =IFERROR(Q46-K12,"n/a") -> 516.4363358 | T46: 0.02085966665 | U46: 0.05535249331 | AB46: |
N47: | | P47: =P33 -> 2020 | Q47: =V98 -> 992.9581093 | R47: =IFERROR(Q47-J13,"--") -> 839.9581093 | T47: 0.0796706052 | U47: 0.09283551713 | AB47: |
N48: | | Q48: =SUM(Q44:Q47) -> 4637.940564 | R48: =SUM(R44:R47) -> 1464.940564 | T48: 0.02510222341 | U48: 0.07537445297 | AB48: |
N49: | | AB49: |
N50: | | AB50: |
N51: | | AB51: |
N52: | | AB52: |
N53: | | AB53: |
N54: | | AB54: |
N55: | | AB55: |
N56: | | AB56: |
N57: | | AB57: |
N58: | | AB58: |
N59: | | AB59: |
A60: ---- | B60: ---- | C60: ---- | D60: ---- | E60: ---- | F60: ---- | G60: ---- | H60: ---- | I60: ---- | J60: ---- | K60: ---- | L60: ---- | M60: ---- | N60: ---- | O60: ---- | P60: ---- | Q60: ---- | R60: ---- | S60: ---- | T60: ---- | U60: ---- | V60: ---- | W60: ---- | X60: ---- | Y60: ---- | Z60: ---- | AA60: ---- | AB60: ----
N61: |
A62: 2016.Fall #24(b) | C62: Use the | D62: multiplicative | F62: ratio method to estimate the | I62: ultimate | J62: S/S | K62: for AY | L62: 2014 | N62: | | O62: SIDE calculation for ultimate claims:
N63: |
C64: cumulative paid claims: | I64: cumulative paid SS: | N64: | | P64: pd clm ratios: | V64: SS ratios
N65: |
C66: AY | D66: 12 | E66: 24 | F66: 36 | G66: 48 | I66: AY | J66: 12 | K66: 24 | L66: 36 | M66: 48 | N66: | | O66: AY | P66: =D66&"-"&E66 -> 12-24 | Q66: =E66&"-"&F66 -> 24-36 | R66: =F66&"-"&G66 -> 36-48 | U66: AY | V66: =P66 -> 12-24 | W66: =Q66 -> 24-36 | X66: =R66 -> 36-48
C67: =C68-1 -> 2011 | D67: 200 | E67: 560 | F67: 570 | G67: 570 | I67: =I68-1 -> 2011 | J67: 20 | K67: 90 | L67: 100 | M67: 100 | N67: | | O67: =C67 -> 2011 | P67: =E67/D67 -> 2.8 | Q67: =F67/E67 -> 1.017857143 | R67: =G67/F67 -> 1 | U67: =C67 -> 2011 | V67: =K67/J67 -> 4.5 | W67: =L67/K67 -> 1.111111111 | X67: =M67/L67 -> 1
C68: =C69-1 -> 2012 | D68: 150 | E68: 250 | F68: 400 | I68: =I69-1 -> 2012 | J68: 16 | K68: 40 | L68: 70 | N68: | | O68: =C68 -> 2012 | P68: =E68/D68 -> 1.666666667 | Q68: =F68/E68 -> 1.6 | U68: =C68 -> 2012 | V68: =K68/J68 -> 2.5 | W68: =L68/K68 -> 1.75
C69: =C70-1 -> 2013 | D69: 150 | E69: 350 | I69: =I70-1 -> 2013 | J69: 15 | K69: 56 | N69: | | O69: =C69 -> 2013 | P69: =E69/D69 -> 2.333333333 | U69: =C69 -> 2013 | V69: =K69/J69 -> 3.733333333 | W69: =L69/K69 -> 0
C70: 2014 | D70: 50 | I70: =C70 -> 2014 | J70: 5 | N70: | | O70: =C70 -> 2014 | U70: =C70 -> 2014
N71: |
C72: selected ultimate claims by AY (using paid claim development) | N72: |
N73: |
C74: AY | D74: ult clms | N74: |
C75: =C76-1 -> 2011 | D75: =ROUND(G67,0) -> 570 | E75: <== | F75: paid claims development method | N75: |
C76: =C77-1 -> 2012 | D76: =ROUND(F68*R$96,0) -> 445 | E76: <== | F76: paid claims development method | N76: |
C77: =C78-1 -> 2013 | D77: =ROUND(E69*Q$96,0) -> 585 | E77: <== | F77: paid claims development method | N77: |
C78: =C70 -> 2014 | D78: 150 | E78: <== | F78: given in the statement of the exam problem | N78: |
N79: |
C80: When selecting development factors, you may select a SIMPLE AVERAGE in this problem. | N80: |
N81: |
N82: |
A83: Random | C83: Use the | D83: multiplicative | F83: approach to estimate the | I83: =IF(RAND()<0.5,"unpaid","ultimate") -> ultimate | J83: S/S | K83: for AY | L83: =C99 -> 2020 | N83: | | O83: The actual LDFs that are used are randomized values around the values in red.
N84: |
C85: cumulative paid claims: | I85: cumulative paid SS: | N85: | | O85: LDF basis (paid claims) | U85: LDF basis (paid S/S)
N86: |
C87: AY | D87: 12 | E87: 24 | F87: 36 | G87: 48 | I87: AY | J87: 12 | K87: 24 | L87: 36 | M87: 48 | N87: | | O87: AY | P87: 12-24 | Q87: 24-36 | R87: 36-48 | S87: 48- | U87: AY | V87: 12-24 | W87: 24-36 | X87: 36-48 | Y87: 48-
C88: =C89-1 -> 2017 | D88: =RANDBETWEEN(30,80)*100 -> 7200 | E88: =ROUND(D88*$P$88*RANDBETWEEN(90,110)/100,-2) -> 23500 | F88: =ROUND(E88*$Q$88*RANDBETWEEN(95,105)/100,-2) -> 34900 | G88: =ROUND(F88*$R$88*RANDBETWEEN(98,102)/100,-2) -> 38800 | I88: =C88 -> 2017 | J88: =ROUND(D88*RANDBETWEEN(20,30)/1000,0) -> 202 | K88: =ROUND(J88*$V$88*RANDBETWEEN(80,120)/100,0) -> 814 | L88: =ROUND(K88*$W$88*RANDBETWEEN(80,110)/100,0) -> 1185 | M88: =ROUND(L88*$X$88*RANDBETWEEN(100,105)/100,0) -> 1356 | N88: | | O88: AY | P88: 3 | Q88: 1.5 | R88: 1.1 | S88: 1 | U88: AY | V88: 4.2 | W88: 1.6 | X88: 1.1 | Y88: 1
C89: =C90-1 -> 2018 | D89: =ROUND(D88*RANDBETWEEN(80,120)/100,-2) -> 6800 | E89: =ROUND(D89*$P$88*RANDBETWEEN(90,110)/100,-2) -> 18400 | F89: =ROUND(E89*$Q$88*RANDBETWEEN(95,105)/100,-2) -> 27600 | I89: =C89 -> 2018 | J89: =ROUND(D89*RANDBETWEEN(20,30)/1000,0) -> 136 | K89: =ROUND(J89*$V$88*RANDBETWEEN(80,120)/100,0) -> 668 | L89: =ROUND(K89*$W$88*RANDBETWEEN(80,110)/100,0) -> 962 | N89: |
C90: =C91-1 -> 2019 | D90: =ROUND(D88*RANDBETWEEN(80,120)/100,-2) -> 8100 | E90: =ROUND(D90*$P$88*RANDBETWEEN(90,110)/100,-2) -> 24100 | I90: =C90 -> 2019 | J90: =ROUND(D90*RANDBETWEEN(20,30)/1000,0) -> 211 | K90: =ROUND(J90*$V$88*RANDBETWEEN(80,120)/100,0) -> 1001 | N90: |
C91: =RANDBETWEEN(2019,2021) -> 2020 | D91: =ROUND(D88*RANDBETWEEN(80,120)/100,-2) -> 6600 | I91: =C91 -> 2020 | J91: =ROUND(D91*RANDBETWEEN(20,30)/1000,0) -> 185 | N91: | | P91: below are the actual PAID CLAIMS LDFs | V91: below are the actual S/S LDFs
N92: | | O92: check | P92: =E10/D10 -> 3.303030303 | Q92: =F10/E10 -> 1.426605505 | R92: =G10/F10 -> 1.112540193 | U92: check | V92: =K10/J10 -> 4.073298429 | W92: =L10/K10 -> 1.407455013 | X92: =M10/L10 -> 1.122374429
C93: selected ultimate claims by AY (using paid claim development) | N93: | | P93: =E11/D11 -> 3.307692308 | Q93: =F11/E11 -> 1.576744186 | V93: =K11/J11 -> 3.90797546 | W93: =L11/K11 -> 1.392464678
N94: | | P94: =E12/D12 -> 2.734177215 | V94: =K12/J12 -> 4.409756098
C95: AY | D95: ult clms | E95: <=== | F95: sometimes you are not given the ultimate claims | N95: | | O95: avg | P95: =AVERAGE(P92:P94) -> 3.114966609 | Q95: =AVERAGE(Q92:Q94) -> 1.501674845 | R95: =AVERAGE(R92:R94) -> 1.112540193 | S95: 1 | U95: avg | V95: =AVERAGE(V92:V94) -> 4.130343329 | W95: =AVERAGE(W92:W94) -> 1.399959846 | X95: =AVERAGE(X92:X94) -> 1.122374429 | Y95: 1
C96: =C88 -> 2017 | D96: =ROUND(G88,0) -> 38800 | F96: - you would then have to calculate them using an appropriate method | N96: | | O96: cum | P96: =P95*Q96 -> 5.204092547 | Q96: =Q95*R96 -> 1.670673622 | R96: =R95*S96 -> 1.112540193 | S96: =S95 -> 1 | U96: cum | V96: =V95*W96 -> 6.489922283 | W96: =W95*X96 -> 1.571279133 | X96: =X95*Y96 -> 1.122374429 | Y96: =Y95 -> 1
C97: =C89 -> 2018 | D97: =ROUND(F89*R$96,0) -> 30706 | F97: - see 2016.Spring #23 | N97: | | O97: LD | P97: =D13 -> 7300 | Q97: =E12 -> 21600 | R97: =F11 -> 33900 | S97: =G10 -> 34600 | U97: LD | V97: =J13 -> 153 | W97: =K12 -> 904 | X97: =L11 -> 887 | Y97: =M10 -> 1229
C98: =C90 -> 2019 | D98: =ROUND(E90*Q$96,0) -> 40263 | N98: | | O98: ult | P98: =P97*P96 -> 37989.87559 | Q98: =Q97*Q96 -> 36086.55024 | R98: =R97*R96 -> 37715.11254 | S98: =S97*S96 -> 34600 | U98: ult | V98: =V97*V96 -> 992.9581093 | W98: =W97*W96 -> 1420.436336 | X98: =X97*X96 -> 995.5461187 | Y98: =Y97*Y96 -> 1229
C99: =C91 -> 2020 | D99: =ROUND(D91*$P$96,0) -> 34347 | N99: |
N100: | | O100: * The check only works if the problem at the top was randomly generated.
C101: When selecting development factors, you may select a SIMPLE AVERAGE in this problem. | N101: |
N102: |
N103: |
N104: |
N105: |
N106: |
N107: |
N108: |
N109: |
N110: |
N111: |
N112: |
N113: |
N114: |
N115: |
N116: |
N117: |
N118: |
N119: |

Sheet 2
A1: Reading: | C1: Friedland 14 (Reinsurance) | M1: Return to TOC | N1: | | AB1: |
A2: Model: | C2: 2017.Fall #25 | N2: | | AB2: |
A3: Problem Type: | C3: Apply reinsurance treaties and calculate net unpaid claims | N3: | | O3: Step 1: | P3: Calculate the net reported claims triangle as (gross reported) - (ceded reported) | AB3: |
N4: | | AB4: |
A5: Problem | C5: Calculate the net unpaid claims for all accident years using reported claims development. | N5: | | P5: AY | Q5: 12 | R5: 24 | S5: 36 | T5: 48 | AB5: |
N6: | | P6: =P7-1 -> 2013 | Q6: =D10-J10 -> 3600 | R6: =E10-K10 -> 6894 | S6: =F10-L10 -> 8142 | T6: =G10-M10 -> 8370 | AB6: |
C7: cumulative gross reported claims: | I7: cumulative ceded reported claims: | N7: | | P7: =P8-1 -> 2014 | Q7: =D11-J11 -> 3230 | R7: =E11-K11 -> 6185 | S7: =F11-L11 -> 7304 | AB7: |
C8: (no reported claim development beyond 48 months) | I8: (under excess-of-loss treaty) | N8: | | P8: =P9-1 -> 2015 | Q8: =D12-J12 -> 8470 | R8: =E12-K12 -> 16220 | AB8: |
C9: AY | D9: 12 | E9: 24 | F9: 36 | G9: 48 | I9: AY | J9: 12 | K9: 24 | L9: 36 | M9: 48 | N9: | | P9: =C13 -> 2016 | Q9: =D13-J13 -> 5830 | AB9: |
C10: 2013 | D10: 3600 | E10: 7214 | F10: 9852 | G10: 10300 | I10: 2013 | J10: 0 | K10: 320 | L10: 1710 | M10: 1930 | N10: | | AB10: |
C11: 2014 | D11: 3400 | E11: 6355 | F11: 8674 | I11: 2014 | J11: 170 | K11: 170 | L11: 1370 | N11: | | O11: Step 2: | P11: Calculate net ultimate claims using reported development on the net triangle above (net of excess-of-loss) | AB11: |
C12: 2015 | D12: 8600 | E12: 16350 | I12: 2015 | J12: 130 | K12: 130 | N12: | | AB12: |
C13: 2016 | D13: 6000 | I13: 2016 | J13: 170 | N13: | | P13: AY | Q13: =Q5&"-"&R5 -> 12-24 | R13: =R5&"-"&S5 -> 24-36 | S13: =S5&"-"&T5 -> 36-48 | T13: =T5&"-"&H9 -> 48- | AB13: |
N14: | | P14: =P6 -> 2013 | Q14: =ROUND(IF($D$5="additive",R6-Q6,R6/Q6),4) -> 1.915 | R14: =ROUND(IF($D$5="additive",S6-R6,S6/R6),4) -> 1.181 | S14: =ROUND(IF($D$5="additive",T6-S6,T6/S6),4) -> 1.028 | U14: <=== | V14: =IF(D5="additive","ADDITIVE ", "MULTIPLICATIVE ") & "development" -> MULTIPLICATIVE development | AB14: |
N15: | | P15: =P7 -> 2014 | Q15: =ROUND(IF($D$5="additive",R7-Q7,R7/Q7),4) -> 1.9149 | R15: =ROUND(IF($D$5="additive",S7-R7,S7/R7),4) -> 1.1809 | AB15: |
C16: cumulative net paid claims: | I16: stop-loss limits | N16: | | P16: =P8 -> 2015 | Q16: =ROUND(IF($D$5="additive",R8-Q8,R8/Q8),4) -> 1.915 | AB16: |
C17: (net of excess-of-loss treaty) | I17: (applies AFTER excess-of-loss treaty) | N17: | | P17: =C13 -> 2016 | AB17: |
C18: AY | D18: pd clm | I18: AY | J18: limit | N18: | | P18: selected | Q18: =ROUND(AVERAGE(Q14:Q16),4) -> 1.915 | R18: =ROUND(AVERAGE(R14:R16),4) -> 1.181 | S18: =ROUND(AVERAGE(S14:S16),4) -> 1.028 | T18: =IF($D$5="additive",0,1) -> 1 | U18: <=== | V18: tail = 1.0 | AB18: |
C19: 2013 | D19: 8200 | I19: 2013 | J19: 10000 | N19: | | P19: cum | Q19: =ROUND(IF($D$5="additive",Q18+R19,Q18*R19),4) -> 2.325 | R19: =ROUND(IF($D$5="additive",R18+S19,R18*S19),4) -> 1.2141 | S19: =ROUND(IF($D$5="additive",S18+T19,S18*T19),4) -> 1.028 | T19: =T18 -> 1 | U19: <=== | V19: selected x (previous cum) | AB19: |
C20: 2014 | D20: 6100 | I20: 2014 | J20: 10000 | N20: | | P20: Ult Clms | Q20: =ROUND(IF($D$5="additive",Q9+Q$19,Q9*Q$19),0) -> 13555 | R20: =ROUND(IF($D$5="additive",R8+R$19,R8*R$19),0) -> 19693 | S20: =ROUND(IF($D$5="additive",S7+S$19,S7*S$19),0) -> 7509 | T20: =ROUND(IF($D$5="additive",T6+T$19,T6*T$19),0) -> 8370 | U20: <=== | V20: cum x (latest diagonal from Step 1) | AB20: |
C21: 2015 | D21: 9000 | I21: 2015 | J21: 12000 | N21: | | P21: net of EoL | AB21: |
C22: 2016 | D22: 2400 | I22: 2016 | J22: 9500 | N22: | | AB22: |
N23: | | O23: Step 3: | P23: Put the results from Step 2 into a table and apply the given stop-loss limits | AB23: |
N24: | | AB24: |
C25: There is no further loss development past 48 months | N25: | | Q25: Ult Clms | R25: stop-loss | S25: Ult Clms | T25: net | U25: net | AB25: |
N26: | | P26: AY | Q26: net of EoL | R26: limit | S26: net of ALL | T26: paid | U26: unpaid | AB26: |
N27: | | P27: =P6 -> 2013 | Q27: =T20 -> 8370 | R27: =J19 -> 10000 | S27: =MIN(Q27,R27) -> 8370 | T27: =D19 -> 8200 | U27: =MAX(0,S27-T27) -> 170 | V27: <=== | W27: final answer | AB27: |
N28: | | P28: =P7 -> 2014 | Q28: =S20 -> 7509 | R28: =J20 -> 10000 | S28: =MIN(Q28,R28) -> 7509 | T28: =D20 -> 6100 | U28: =MAX(0,S28-T28) -> 1409 | V28: <=== | W28: final answer | AB28: |
N29: | | P29: =P8 -> 2015 | Q29: =R20 -> 19693 | R29: =J21 -> 12000 | S29: =MIN(Q29,R29) -> 12000 | T29: =D21 -> 9000 | U29: =MAX(0,S29-T29) -> 3000 | V29: <=== | W29: final answer | AB29: |
N30: | | P30: =P9 -> 2016 | Q30: =Q20 -> 13555 | R30: =J22 -> 9500 | S30: =MIN(Q30,R30) -> 9500 | T30: =D22 -> 2400 | U30: =MAX(0,S30-T30) -> 7100 | V30: <=== | W30: final answer | AB30: |
N31: | | P31: TOTAL | U31: =SUM(U27:U30) -> 11679 | AB31: |
N32: | | AB32: |
N33: | | AB33: |
N34: | | AB34: |
N35: | | AB35: |
N36: | | AB36: |
N37: | | AB37: |
N38: | | AB38: |
N39: | | AB39: |
N40: | | AB40: |
N41: | | AB41: |
N42: | | AB42: |
N43: | | AB43: |
N44: | | AB44: |
N45: | | AB45: |
N46: | | AB46: |
N47: | | AB47: |
N48: | | AB48: |
N49: | | AB49: |
N50: | | AB50: |
N51: | | AB51: |
N52: | | AB52: |
N53: | | AB53: |
N54: | | AB54: |
N55: | | AB55: |
N56: | | AB56: |
N57: | | AB57: |
N58: | | AB58: |
N59: | | AB59: |
A60: Model | B60: ---- | C60: ---- | D60: ---- | E60: ---- | F60: ---- | G60: ---- | H60: ---- | I60: ---- | J60: ---- | K60: ---- | L60: ---- | M60: ---- | N60: ---- | O60: ---- | P60: ---- | Q60: ---- | R60: ---- | S60: ---- | T60: ---- | U60: ---- | V60: ---- | W60: ---- | X60: ---- | Y60: ---- | Z60: ---- | AA60: ---- | AB60: ----
A61: Reading: | C61: Friedland 14 (Reinsurance) | N61: |
A62: Model: | C62: 2017.Fall #25 | N62: |
A63: Problem Type: | C63: Apply reinsurance treaties and calculate net unpaid claims | N63: |
N64: |
A65: Problem | C65: Calculate the net unpaid claims for all accident years using reported claims development. | N65: |
N66: |
C67: cumulative gross reported claims: | I67: cumulative ceded reported claims: | N67: | | P67: net LDFs (from solution) | V67: randomized LDFs
C68: (no reported claim development beyond 48 months) | I68: (under excess-of-loss treaty) | N68: |
C69: AY | D69: 12 | E69: 24 | F69: 36 | G69: 48 | I69: AY | J69: 12 | K69: 24 | L69: 36 | M69: 48 | N69: | | P69: AY | V69: AY
C70: =C71-1 -> 2013 | D70: 2757 | E70: 5570 | F70: 6880 | G70: 7047 | I70: =C70 -> 2013 | J70: 0 | K70: 745 | L70: 1332 | M70: 1332 | N70: | | P70: =P71-1 -> 2013 | Q70: =Q14 -> 1.915 | R70: =R14 -> 1.181 | S70: =S14 -> 1.028 | V70: =V71-1 -> 2013 | W70: =RANDBETWEEN(1500,2000)/1000 -> 1.56 | X70: =RANDBETWEEN(1100,1200)/1000 -> 1.103 | Y70: =RANDBETWEEN(1010,1050)/1000 -> 1.041
C71: =C72-1 -> 2014 | D71: 2345 | E71: 4104 | F71: 5121 | I71: =C71 -> 2014 | J71: 0 | K71: 0 | L71: 402 | N71: | | P71: =P72-1 -> 2014 | Q71: =Q15 -> 1.9149 | R71: =R15 -> 1.1809 | V71: =V72-1 -> 2014 | W71: =W70 -> 1.56 | X71: =X70 -> 1.103
C72: =C73-1 -> 2015 | D72: 2639 | E72: 4677 | I72: =C72 -> 2015 | J72: 154 | K72: 328 | N72: | | P72: =P73-1 -> 2015 | Q72: =Q16 -> 1.915 | V72: =V73-1 -> 2015 | W72: =W70 -> 1.56
C73: 2016 | D73: 2802 | I73: =C73 -> 2016 | J73: 0 | N73: | | P73: 2016 | V73: 2016
N74: |
N75: |
C76: cumulative net paid claims: | I76: stop-loss limits | N76: | | P76: back into gross reported (except age 12) | V76: randomized ceded
C77: (net of excess-of-loss treaty) | I77: (applies AFTER excess-of-loss treaty) | N77: |
C78: AY | D78: pd clm | I78: AY | J78: limit | N78: | | P78: AY | V78: AY | W78: 12 | X78: 24 | Y78: 36 | Z78: 48
C79: =C70 -> 2013 | D79: 5102 | I79: =C70 -> 2013 | J79: 5000 | N79: | | P79: =P80-1 -> 2013 | Q79: =RANDBETWEEN(20,90)*100 -> 8600 | R79: =ROUND((Q79-W79)*W70+X79,0) -> 13416 | S79: =ROUND((R79-X79)*X70+Y79,0) -> 16308 | T79: =ROUND((S79-Y79)*Y70+Z79,-2) -> 16900 | V79: =I70 -> 2013 | W79: =IF(RAND()<0.5,0,RANDBETWEEN(10,20)*10) -> 0 | X79: =W79+IF(RAND()<0.5,0,RANDBETWEEN(30,100)*10) -> 0 | Y79: =X79+IF(RAND()<0.5,0,RANDBETWEEN(100,175)*10) -> 1510 | Z79: =Y79+IF(RAND()<0.5,0,RANDBETWEEN(20,55)*10) -> 1510
C80: =C71 -> 2014 | D80: 3834 | I80: =C71 -> 2014 | J80: 5000 | N80: | | P80: =P81-1 -> 2014 | Q80: =RANDBETWEEN(20,90)*100 -> 2200 | R80: =ROUND((Q80-W80)*W71+X80,0) -> 3788 | S80: =ROUND((R80-X80)*X71+Y80,0) -> 4117 | V80: =I71 -> 2014 | W80: =IF(RAND()<0.5,0,RANDBETWEEN(10,20)*10) -> 150 | X80: =W80+IF(RAND()<0.5,0,RANDBETWEEN(30,100)*10) -> 590 | Y80: =X80+IF(RAND()<0.5,0,RANDBETWEEN(100,175)*10) -> 590
C81: =C72 -> 2015 | D81: 2840 | I81: =C72 -> 2015 | J81: 5000 | N81: | | P81: =P82-1 -> 2015 | Q81: =RANDBETWEEN(20,90)*100 -> 2200 | R81: =ROUND((Q81-W81)*W72+X81,0) -> 4112 | V81: =I72 -> 2015 | W81: =IF(RAND()<0.5,0,RANDBETWEEN(10,20)*10) -> 160 | X81: =W81+IF(RAND()<0.5,0,RANDBETWEEN(30,100)*10) -> 930
C82: =C73 -> 2016 | D82: 1385 | I82: =C73 -> 2016 | J82: none | N82: | | P82: 2016 | Q82: =RANDBETWEEN(20,90)*100 -> 2300 | V82: =I73 -> 2016 | W82: =IF(RAND()<0.5,0,RANDBETWEEN(10,20)*10) -> 100
N83: |
N84: | | P84: calc net LDFs | Q84: =(R79-X79)/(Q79-W79) -> 1.56 | R84: =(S79-Y79)/(R79-X79) -> 1.10301133 | S84: =(T79-Z79)/(S79-Y79) -> 1.040005406
C85: There is no further loss development past 48 months | N85: | | Q85: =(R80-X80)/(Q80-W80) -> 1.56 | R85: =(S80-Y80)/(R80-X80) -> 1.102876798
N86: | | Q86: =(R81-X81)/(Q81-W81) -> 1.559803922
N87: | | Q87: * should match randomized LDFs
N88: |
N89: | | P89: check: | Q89: =Q84-W70 -> 0 | R89: 1.132975552e-05 | S89: -0.000994593864
N90: | | Q90: 0 | R90: -0.0001232020013 | S90: 0
N91: | | Q91: =Q86-W72 -> -0.0001960784314
N92: |
N93: | | P93: randomized paid loss | V93: randomized stop-loss
N94: |
N95: | | P95: AY | Q95: pd clm | V95: AY | W95: limit
N96: | | P96: =C79 -> 2013 | Q96: =ROUND(T79*R104,-2) -> 13500 | V96: =P96 -> 2013 | W96: =IF(RAND()<0.25,"none",RANDBETWEEN(16,24)*500) -> none
N97: | | P97: =C80 -> 2014 | Q97: =ROUND(S80*R105,-2) -> 2900 | V97: =P97 -> 2014 | W97: =IF(RAND()<0.25,"none",RANDBETWEEN(16,24)*500) -> 11500
N98: | | P98: =C81 -> 2015 | Q98: =ROUND(R81*R106,-2) -> 2300 | V98: =P98 -> 2015 | W98: =IF(RAND()<0.25,"none",RANDBETWEEN(16,24)*500) -> 10000
N99: | | P99: =C82 -> 2016 | Q99: =ROUND(Q82*R107,-2) -> 900 | V99: =P99 -> 2016 | W99: =IF(RAND()<0.25,"none",RANDBETWEEN(16,24)*500) -> 10500
N100: |
N101: | | P101: given ratios for paid
N102: |
N103: | | P103: AY | Q103: ratio | R103: selected
N104: | | P104: =P105-1 -> 2013 | Q104: =D79/G70 -> 0.7239960267 | R104: 0.8
N105: | | P105: =P106-1 -> 2014 | Q105: =D80/F71 -> 0.7486818981 | R105: 0.7
N106: | | P106: =P107-1 -> 2015 | Q106: =D81/E72 -> 0.6072268548 | R106: 0.55
N107: | | P107: 2016 | Q107: =D82/D73 -> 0.494289793 | R107: 0.4
N108: |
N109: |
N110: |
N111: |
N112: |
N113: |
N114: |
N115: |
N116: |
N117: |
N118: |
N119: |

Sheet 3
A1: Reading: | C1: Friedland 16 (ALAE) | M1: Return to TOC | N1: | | AB1: |
A2: Model: | C2: 2019.Spring #24 | N2: | | AB2: |
A3: Problem Type: | C3: Additive or Multiplicative approach for ALAE | N3: | | O3: Step 1: | P3: Ratio of cumulative paid ALAE to cumulative paid claims: | AB3: |
N4: | | AB4: |
A5: Problem | C5: Use the | D5: additive | F5: approach to estimate the | I5: unpaid | J5: ALAE | K5: for AY | L5: 2020 | N5: | | P5: AY | Q5: 12 | R5: 24 | S5: 36 | T5: 48 | AB5: |
N6: | | P6: =P7-1 -> 2017 | Q6: =ROUND(J10/D10,4) -> 0.0259 | R6: =ROUND(K10/E10,4) -> 0.0346 | S6: =ROUND(L10/F10,4) -> 0.0366 | T6: =ROUND(M10/G10,4) -> 0.0359 | AB6: |
C7: cumulative paid claims: | I7: cumulative paid ALAE: | N7: | | P7: =P8-1 -> 2018 | Q7: =ROUND(J11/D11,4) -> 0.029 | R7: =ROUND(K11/E11,4) -> 0.0405 | S7: =ROUND(L11/F11,4) -> 0.0411 | AB7: |
N8: | | P8: =P9-1 -> 2019 | Q8: =ROUND(J12/D12,4) -> 0.022 | R8: =ROUND(K12/E12,4) -> 0.0297 | AB8: |
C9: AY | D9: 12 | E9: 24 | F9: 36 | G9: 48 | I9: AY | J9: 12 | K9: 24 | L9: 36 | M9: 48 | N9: | | P9: =C13 -> 2020 | Q9: =ROUND(J13/D13,4) -> 0.02 | AB9: |
C10: 2017 | D10: 5900 | E10: 19500 | F10: 30400 | G10: 33400 | I10: 2017 | J10: 153 | K10: 675 | L10: 1112 | M10: 1199 | N10: | | AB10: |
C11: 2018 | D11: 6700 | E11: 19500 | F11: 29800 | I11: 2018 | J11: 194 | K11: 790 | L11: 1226 | N11: | | O11: Step 2: | P11: Development triangle (either additive or multiplicative as appropriate): | AB11: |
C12: 2019 | D12: 5900 | E12: 17300 | I12: 2019 | J12: 130 | K12: 513 | N12: | | AB12: |
C13: 2020 | D13: 5800 | I13: 2020 | J13: 116 | N13: | | P13: AY | Q13: =Q5&"-"&R5 -> 12-24 | R13: =R5&"-"&S5 -> 24-36 | S13: =S5&"-"&T5 -> 36-48 | T13: =T5&"-"&H9 -> 48- | AB13: |
N14: | | P14: =P6 -> 2017 | Q14: =ROUND(IF($D$5="additive",R6-Q6,R6/Q6),4) -> 0.0087 | R14: =ROUND(IF($D$5="additive",S6-R6,S6/R6),4) -> 0.002 | S14: =ROUND(IF($D$5="additive",T6-S6,T6/S6),4) -> -0.0007 | U14: <=== | V14: =IF(D5="additive","ADDITIVE ", "MULTIPLICATIVE ") & "development" -> ADDITIVE development | AB14: |
C15: selected ultimate claims by AY | N15: | | P15: =P7 -> 2018 | Q15: =ROUND(IF($D$5="additive",R7-Q7,R7/Q7),4) -> 0.0115 | R15: =ROUND(IF($D$5="additive",S7-R7,S7/R7),4) -> 0.0006 | AB15: |
N16: | | P16: =P8 -> 2019 | Q16: =ROUND(IF($D$5="additive",R8-Q8,R8/Q8),4) -> 0.0077 | AB16: |
C17: AY | D17: ult clms | E17: <=== | F17: sometimes you are not given the ultimate claims | N17: | | P17: =C13 -> 2020 | AB17: |
C18: 2017 | D18: 33400 | F18: - you would then have to calculate them using an appropriate method | N18: | | P18: selected | Q18: =ROUND(AVERAGE(Q14:Q16),4) -> 0.0093 | R18: =ROUND(AVERAGE(R14:R16),4) -> 0.0013 | S18: =ROUND(AVERAGE(S14:S16),4) -> -0.0007 | T18: =IF($D$5="additive",0,1) -> 0 | U18: <=== | V18: tail = 0.0 if additive OR 1.0 if multiplicative | AB18: |
C19: 2018 | D19: 33087 | F19: - see 2016.Spring #23 | N19: | | P19: cum | Q19: =ROUND(IF($D$5="additive",Q18+R19,Q18*R19),4) -> 0.0099 | R19: =ROUND(IF($D$5="additive",R18+S19,R18*S19),4) -> 0.0006 | S19: =ROUND(IF($D$5="additive",S18+T19,S18*T19),4) -> -0.0007 | T19: =T18 -> 0 | U19: <=== | V19: =IF(D5="additive","ADDITIVE: selected + (previous cum)", "MULTIPLICATIVE: selected x (previous cum)") -> ADDITIVE: selected + (previous cum) | AB19: |
C20: 2019 | D20: 29413 | N20: | | P20: Ult Ratio | Q20: =ROUND(IF($D$5="additive",Q9+Q$19,Q9*Q$19),4) -> 0.0299 | R20: =ROUND(IF($D$5="additive",R8+R$19,R8*R$19),4) -> 0.0303 | S20: =ROUND(IF($D$5="additive",S7+S$19,S7*S$19),4) -> 0.0404 | T20: =ROUND(IF($D$5="additive",T6+T$19,T6*T$19),4) -> 0.0359 | U20: <=== | V20: =IF(D5="additive","ADDITIVE: cum + (latest diagonal from Step 1)","MULTIPLICATIVE: cum x (latest diagonal from Step 1)") -> ADDITIVE: cum + (latest diagonal from Step 1) | AB20: |
C21: 2020 | D21: 30549 | N21: | | AB21: |
N22: | | P22: AY | Q22: =C21 -> 2020 | R22: =C20 -> 2019 | S22: =C19 -> 2018 | T22: =C18 -> 2017 | U22: <=== | V22: given information | AB22: | | AD22: parameters for 2-point exponential fit: y = aebx
C23: When selecting development factors, you may select a SIMPLE AVERAGE in this problem. | N23: | | P23: ult clms | Q23: =D21 -> 30549 | R23: =D20 -> 29413 | S23: =D19 -> 33087 | T23: =D18 -> 33400 | V23: (repeated here for convenience) | AB23: | | AD23: 0 - 12 | AF23: 12 - 24 | AH23: 24 - 36 | AJ23: 36 - 48 | AL23: 48 - 60
N24: | | P24: pd ALAE | Q24: =J13 -> 116 | R24: =K12 -> 513 | S24: =L11 -> 1226 | T24: =M10 -> 1199 | AB24: | | AC24: AY | AD24: 1 + b | AE24: a | AF24: 1 + b | AG24: a | AH24: 1 + b | AI24: a | AJ24: 1 + b | AK24: a | AL24: 1 + b | AM24: a
N25: | | AB25: | | AC25: 2022 | AD25: use 12 - 24 values | AF25: =LOGEST(D17:E17,D10:E10,1,1) ->  | AH25: =LOGEST(E17:F17,E10:F10,1,1) ->  | AJ25: =LOGEST(F17:G17,F10:G10,1,1) ->  | AL25: not needed
N26: | | O26: Step 3: | P26: Ultimate ALAE | R26: = | S26: (Ultimate Ratio) | U26: x | V26: (Ultimate Claims) | AB26: | | AC26: =AC25+1 -> 2023 | AD26: use 12 - 24 values | AF26: =LOGEST(D18:E18,D11:E11,1,1) ->  | AH26: =LOGEST(E18:F18,E11:F11,1,1) -> 
N27: | | P27: Unpad ALAE | R27: = | S27: (Ultimate ALAE) | U27: - | V27: (Paid ALAE) | AB27: | | AC27: =AC26+1 -> 2024 | AD27: use 12 - 24 values | AF27: =LOGEST(D19:E19,D12:E12,1,1) -> 
N28: | | AB28: | | AC28: =AC27+1 -> 2025 | AD28: use 12 - 24 values
N29: | | P29: AY | Q29: Ult ALAE | R29: UnPd ALAE | AB29: |
N30: | | P30: =C18 -> 2017 | Q30: =T20*D18 -> 1199.06 | R30: =Q30-M10 -> 0.06 | AB30: |
N31: | | P31: =C19 -> 2018 | Q31: =S20*D19 -> 1336.7148 | R31: =Q31-L11 -> 110.7148 | AB31: |
N32: | | P32: =C20 -> 2019 | Q32: =R20*D20 -> 891.2139 | R32: =Q32-K12 -> 378.2139 | AB32: |
N33: | | P33: =C13 -> 2020 | Q33: =Q20*D21 -> 913.4151 | R33: =Q33-J13 -> 797.4151 | AB33: |
N34: | | Q34: =SUM(Q30:Q33) -> 4340.4038 | R34: =SUM(R30:R33) -> 1286.4038 | AB34: |
N35: | | AB35: |
N36: | | O36: Step 4: | P36: =I5 -> unpaid | Q36: =J5 -> ALAE | R36: =K5 -> for AY | S36: =L5 -> 2020 | T36: = | U36: =VLOOKUP(S36,P32:R33,IF(P36="ultimate",2,3),FALSE) -> 797.4151 | V36: <=== | W36: final answer | AB36: |
N37: | | AB37: |
N38: | | AB38: |
N39: | | AB39: |
N40: | | AB40: |
N41: | | AB41: |
N42: | | AB42: |
N43: | | AB43: |
N44: | | AB44: |
N45: | | AB45: |
N46: | | AB46: |
N47: | | AB47: |
N48: | | AB48: |
N49: | | AB49: |
N50: | | AB50: |
N51: | | AB51: |
N52: | | AB52: |
N53: | | AB53: |
N54: | | AB54: |
N55: | | AB55: |
N56: | | AB56: |
N57: | | AB57: |
N58: | | AB58: |
N59: | | AB59: |
A60: ---- | B60: ---- | C60: ---- | D60: ---- | E60: ---- | F60: ---- | G60: ---- | H60: ---- | I60: ---- | J60: ---- | K60: ---- | L60: ---- | M60: ---- | N60: ---- | O60: ---- | P60: ---- | Q60: ---- | R60: ---- | S60: ---- | T60: ---- | U60: ---- | V60: ---- | W60: ---- | X60: ---- | Y60: ---- | Z60: ---- | AA60: ---- | AB60: ----
N61: |
A62: 2019.Spring #24 | C62: Use the | D62: multiplicative | F62: approach to estimate the | I62: ultimate | J62: ALAE | K62: for AY | L62: 2018 | N62: |
N63: |
C64: cumulative paid claims: | I64: cumulative paid ALAE: | N64: |
N65: |
C66: AY | D66: 12 | E66: 24 | F66: 36 | G66: 48 | I66: AY | J66: 12 | K66: 24 | L66: 36 | M66: 48 | N66: |
C67: =C68-1 -> 2015 | D67: 3800 | E67: 10640 | F67: 15960 | G67: 17556 | I67: =I68-1 -> 2015 | J67: 77 | K67: 316 | L67: 512 | M67: 571 | N67: | | P67: =E67/D67 -> 2.8 | Q67: =F67/E67 -> 1.5 | R67: =G67/F67 -> 1.1 | V67: =K67/J67 -> 4.103896104 | W67: =L67/K67 -> 1.620253165 | X67: =M67/L67 -> 1.115234375
C68: =C69-1 -> 2016 | D68: 3900 | E68: 10920 | F68: 15600 | I68: =I69-1 -> 2016 | J68: 81 | K68: 337 | L68: 517 | N68: | | P68: =E68/D68 -> 2.8 | Q68: =F68/E68 -> 1.428571429 | V68: =K68/J68 -> 4.160493827 | W68: =L68/K68 -> 1.534124629
C69: =C70-1 -> 2017 | D69: 3850 | E69: 11858 | I69: =I70-1 -> 2017 | J69: 75 | K69: 334 | N69: | | P69: =E69/D69 -> 3.08 | V69: =K69/J69 -> 4.453333333 | W69: =L69/K69 -> 0
C70: 2018 | D70: 4050 | I70: =C70 -> 2018 | J70: 82 | N70: |
N71: |
C72: selected ultimate claims by AY | N72: |
N73: |
C74: AY | D74: ult clms | E74: <=== | F74: sometimes you are not given the ultimate claims | N74: |
C75: =C76-1 -> 2015 | D75: 17500 | F75: - you would then have to calculate them using an appropriate method | N75: |
C76: =C77-1 -> 2016 | D76: 17900 | F76: - see 2016.Spring #23 | N76: |
C77: =C78-1 -> 2017 | D77: 17600 | N77: |
C78: =C70 -> 2018 | D78: 18500 | N78: |
N79: |
C80: When selecting development factors, you may select a SIMPLE AVERAGE in this problem. | N80: |
N81: |
N82: |
A83: Random | C83: Use the | D83: =IF(RAND()<0.5,"additive","multiplicative") -> additive | F83: approach to estimate the | I83: =IF(RAND()<0.5,"unpaid","ultimate") -> ultimate | J83: ALAE | K83: for AY | L83: =C99 -> 2019 | N83: | | O83: The actual LDFs that are used are randomized values around the values in red.
N84: |
C85: cumulative paid claims: | I85: cumulative paid ALAE: | N85: | | O85: LDF basis (paid claims) | U85: LDF basis (paid ALAE)
N86: |
C87: AY | D87: 12 | E87: 24 | F87: 36 | G87: 48 | I87: AY | J87: 12 | K87: 24 | L87: 36 | M87: 48 | N87: | | O87: AY | P87: 12-24 | Q87: 24-36 | R87: 36-48 | S87: 48- | U87: AY | V87: 12-24 | W87: 24-36 | X87: 36-48 | Y87: 48-
C88: =C89-1 -> 2016 | D88: =RANDBETWEEN(30,80)*100 -> 5000 | E88: =ROUND(D88*$P$88*RANDBETWEEN(90,110)/100,-2) -> 15000 | F88: =ROUND(E88*$Q$88*RANDBETWEEN(95,105)/100,-2) -> 21600 | G88: =ROUND(F88*$R$88*RANDBETWEEN(98,102)/100,-2) -> 23300 | I88: =C88 -> 2016 | J88: =ROUND(D88*RANDBETWEEN(20,30)/1000,0) -> 100 | K88: =ROUND(J88*$V$88*RANDBETWEEN(90,110)/100,0) -> 378 | L88: =ROUND(K88*$W$88*RANDBETWEEN(95,105)/100,0) -> 623 | M88: =ROUND(L88*$X$88*RANDBETWEEN(98,102)/100,0) -> 699 | N88: | | O88: AY | P88: 3 | Q88: 1.5 | R88: 1.1 | S88: 1 | U88: AY | V88: 4.2 | W88: 1.6 | X88: 1.1 | Y88: 1
C89: =C90-1 -> 2017 | D89: =ROUND(D88*RANDBETWEEN(80,120)/100,-2) -> 4300 | E89: =ROUND(D89*$P$88*RANDBETWEEN(90,110)/100,-2) -> 14100 | F89: =ROUND(E89*$Q$88*RANDBETWEEN(95,105)/100,-2) -> 21600 | I89: =C89 -> 2017 | J89: =ROUND(D89*RANDBETWEEN(20,30)/1000,0) -> 103 | K89: =ROUND(J89*$V$88*RANDBETWEEN(90,110)/100,0) -> 398 | L89: =ROUND(K89*$W$88*RANDBETWEEN(95,105)/100,0) -> 624 | N89: |
C90: =C91-1 -> 2018 | D90: =ROUND(D88*RANDBETWEEN(80,120)/100,-2) -> 4500 | E90: =ROUND(D90*$P$88*RANDBETWEEN(90,110)/100,-2) -> 13800 | I90: =C90 -> 2018 | J90: =ROUND(D90*RANDBETWEEN(20,30)/1000,0) -> 99 | K90: =ROUND(J90*$V$88*RANDBETWEEN(90,110)/100,0) -> 445 | N90: |
C91: =RANDBETWEEN(2019,2021) -> 2019 | D91: =ROUND(D88*RANDBETWEEN(80,120)/100,-2) -> 5900 | I91: =C91 -> 2019 | J91: =ROUND(D91*RANDBETWEEN(20,30)/1000,0) -> 124 | N91: |
N92: | | O92: check | P92: =E88/D88 -> 3 | Q92: =F88/E88 -> 1.44 | R92: =G88/F88 -> 1.078703704 | U92: check | V92: =K88/J88 -> 3.78 | W92: =L88/K88 -> 1.648148148 | X92: =M88/L88 -> 1.121990369
C93: selected ultimate claims by AY | N93: | | P93: =E89/D89 -> 3.279069767 | Q93: =F89/E89 -> 1.531914894 | V93: =K89/J89 -> 3.86407767 | W93: =L89/K89 -> 1.567839196
N94: | | P94: =E90/D90 -> 3.066666667 | V94: =K90/J90 -> 4.494949495
C95: AY | D95: ult clms | E95: <=== | F95: sometimes you are not given the ultimate claims | N95: | | O95: avg | P95: =AVERAGE(P92:P94) -> 3.115245478 | Q95: =AVERAGE(Q92:Q94) -> 1.485957447 | R95: =AVERAGE(R92:R94) -> 1.078703704 | S95: 1 | U95: avg | V95: =AVERAGE(V92:V94) -> 4.046342388 | W95: =AVERAGE(W92:W94) -> 1.607993672 | X95: =AVERAGE(X92:X94) -> 1.121990369 | Y95: 1
C96: =C88 -> 2016 | D96: =ROUND(G88,0) -> 23300 | F96: - you would then have to calculate them using an appropriate method | N96: | | O96: cum | P96: =P95*Q96 -> 4.99345128 | Q96: =Q95*R96 -> 1.602907801 | R96: =R95*S96 -> 1.078703704 | S96: =S95 -> 1 | U96: cum | V96: =V95*W96 -> 7.300222433 | W96: =W95*X96 -> 1.804153414 | X96: =X95*Y96 -> 1.121990369 | Y96: =Y95 -> 1
C97: =C89 -> 2017 | D97: =ROUND(F89*R$96,0) -> 23300 | F97: - see 2016.Spring #23 | N97: |
C98: =C90 -> 2018 | D98: =ROUND(E90*Q$96,0) -> 22120 | N98: | | P98: =Q98*P88 -> 4.95 | Q98: =R98*Q88 -> 1.65 | R98: =S98*R88 -> 1.1 | S98: =S88 -> 1
C99: =C91 -> 2019 | D99: =ROUND(D91*$P$96,0) -> 29461 | N99: |
N100: |
C101: When selecting development factors, you may select a SIMPLE AVERAGE in this problem. | N101: |
N102: |
N103: |
N104: |
N105: |
N106: |
N107: |
N108: |
N109: |
N110: |
N111: |
N112: |
N113: |
N114: |
N115: |
N116: |
N117: |
N118: |
N119: |

Sheet 4
A1: Reading: | C1: Friedland 17 (ULAE) | M1: Return to TOC | N1: | | AB1: |
A2: Model: | C2: 2018.Spring #23 | N2: | | AB2: |
A3: Problem Type: | C3: Classical/Kittel approach for ULAE | N3: | | AB3: |
N4: | | AB4: |
A5: Problem | C5: Use the | D5: classical | F5: approach to estimate the | I5: unpaid | J5: ULAE | K5: for AY | L5: 2020 | N5: | | O5: Step 1: | P5: =IF(D5="classical"," classical ULAE ratio ==> (paid ULAE) / (paid claims)"," Kittel ULAE ratio ==> (paid ULAE) / AVG [ (paid claims) , (incurred claims) ]") -> classical ULAE ratio ==> (paid ULAE) / (paid claims) | AB5: |
N6: | | AB6: |
D7: occurrence | F7: <== policy type | N7: | | Q7: paid | R7: =IF(D5="classical","paid","average") -> paid | S7: ULAE | AB7: |
N8: | | P8: CY | Q8: ULAE | R8: =IF(D5="classical","claims","(pd, inc)") -> claims | S8: ratio | AB8: |
E9: paid | F9: paid | G9: incurred | H9: <== incurred includes reported & IBNR | N9: | | P9: =P10-1 -> 2016 | Q9: =E11 -> 0 | R9: =IF(D$5="classical",F11,AVERAGE(F11,G11)) -> 0 | S9: =IFERROR(ROUND(Q9/R9,3),"") ->  | AB9: |
D10: CY | E10: ULAE | F10: claims | G10: claims | N10: | | P10: =P11-1 -> 2017 | Q10: =E12 -> 47000 | R10: =IF(D$5="classical",F12,AVERAGE(F12,G12)) -> 403000 | S10: =IFERROR(ROUND(Q10/R10,3),"") -> 0.117 | V10: Sometimes there is a trend in ULAE ratios. | AB10: |
D11: 2016 | E11: 0 | F11: 0 | G11: 0 | N11: | | P11: =P12-1 -> 2018 | Q11: =E13 -> 57000 | R11: =IF(D$5="classical",F13,AVERAGE(F13,G13)) -> 327000 | S11: =IFERROR(ROUND(Q11/R11,3),"") -> 0.174 | V11: If so, you may need to use judgement | AB11: |
D12: 2017 | E12: 47000 | F12: 403000 | G12: 490000 | N12: | | P12: =P13-1 -> 2019 | Q12: =E14 -> 59000 | R12: =IF(D$5="classical",F14,AVERAGE(F14,G14)) -> 427000 | S12: =IFERROR(ROUND(Q12/R12,3),"") -> 0.138 | V12: instead of just selecting the average | AB12: |
D13: 2018 | E13: 57000 | F13: 327000 | G13: 480000 | N13: | | P13: =D15 -> 2020 | Q13: =E15 -> 57000 | R13: =IF(D$5="classical",F15,AVERAGE(F15,G15)) -> 451000 | S13: =IFERROR(ROUND(Q13/R13,3),"") -> 0.126 | AB13: |
D14: 2019 | E14: 59000 | F14: 427000 | G14: 530000 | N14: | | S14: =ROUND(AVERAGE(S10:S13),3) -> 0.139 | T14: <== selected (average) | AB14: |
D15: 2020 | E15: 57000 | F15: 451000 | G15: 400000 | N15: | | AB15: |
N16: | | O16: Step 2: | P16: apply formula for unpaid ULAE | AB16: |
D17: 150000 | E17: case outstanding (latest AY) | N17: | | AB17: |
D18: 80000 | E18: total IBNR (latest AY) | N18: | | P18: unpaid ULAE | R18: = | S18: (ULAE ratio) | U18: x | V18: ="[ "&D22*100&"% x" -> [ 40% x | W18: ( Case + IBNER ) | Y18: + | Z18: 100% x | AA18: IBNYR ] | AB18: |
D19: 0.75 | E19: % of total IBNR attributed to future case development on known claims | N19: | | AB19: |
N20: | | P20: where: | AB20: |
D21: 0.6 | E21: percent of unallocated work that occurs when a claim is opened | N21: | | AB21: |
D22: 0.4 | E22: percent of unallocated work that occurs when a claim is closed | N22: | | P22: IBNER | Q22: = | R22: =D19 -> 0.75 | S22: x | T22: Total IBNR | V22: <== Incurred But Not ENOUGH Reported | AB22: |
N23: | | Q23: = | R23: =R22 -> 0.75 | S23: x | T23: =D18 -> 80000 | AB23: |
N24: | | Q24: = | R24: =R23*T23 -> 60000 | AB24: |
N25: | | AB25: |
N26: | | P26: IBNYR | Q26: = | R26: Tot IBNR | S26: - | T26: IBNER | V26: <== Incurred But Not YET Reported | AB26: |
N27: | | Q27: = | R27: =D18 -> 80000 | S27: - | T27: =R24 -> 60000 | AB27: |
N28: | | Q28: = | R28: =R27-T27 -> 20000 | AB28: |
N29: | | AB29: |
N30: | | P30: therefore: | AB30: |
N31: | | AB31: |
N32: | | P32: unpaid ULAE | R32: = | S32: =S14 -> 0.139 | U32: x | V32: ="[ "&D22*100&"% x" -> [ 40% x | W32: =D17+R24 -> 210000 | X32: + | Y32: 100% x | Z32: =R28 -> 20000 | AA32: ] | AB32: |
N33: | | P33: unpaid ULAE | R33: = | S33: =S14*(D22*W32+Z32) -> 14456 | T33: <== final answer | AB33: |
N34: | | AB34: |
N35: | | AB35: |
N36: | | AB36: |
N37: | | AB37: |
N38: | | AB38: |
N39: | | AB39: |
N40: | | AB40: |
N41: | | AB41: |
N42: | | AB42: |
N43: | | AB43: |
N44: | | AB44: |
N45: | | AB45: |
N46: | | AB46: |
N47: | | AB47: |
N48: | | AB48: |
N49: | | AB49: |
N50: | | AB50: |
N51: | | AB51: |
N52: | | AB52: |
N53: | | AB53: |
N54: | | AB54: |
N55: | | AB55: |
N56: | | AB56: |
N57: | | AB57: |
N58: | | AB58: |
N59: | | AB59: |
A60: ---- | B60: ---- | C60: ---- | D60: ---- | E60: ---- | F60: ---- | G60: ---- | H60: ---- | I60: ---- | J60: ---- | K60: ---- | L60: ---- | M60: ---- | N60: ---- | O60: ---- | P60: ---- | Q60: ---- | R60: ---- | S60: ---- | T60: ---- | U60: ---- | V60: ---- | W60: ---- | X60: ---- | Y60: ---- | Z60: ---- | AA60: ---- | AB60: ----

Sheet 5
A1: Reading: | C1: Friedland 17 (ULAE) | M1: Return to TOC | N1: | | AB1: |
A2: Model: | C2: ULAE Example | N2: | | O2: Step 1a | P2: calculate the claims basis B | AB2: |
A3: Problem Type: | C3: Congor & Nolibos approach for ULAE | N3: | | AB3: |
N4: | | AA4: claims | AB4: |
A5: Find | C5: Estimate the unpaid ULAE as of the latest given year-end using all 3 versions of the Congor and Nobilos approach. | N5: | | AA5: basis | AB5: |
N6: | | O6: CY | P6: =G10 -> 0.5 | Q6: x | R6: R | S6: + | T6: =G11 -> 0.35 | U6: x | V6: P | W6: + | X6: =G12 -> 0.15 | Y6: x | Z6: C | AA6: B | AB6: |
N7: | | O7: =C19 -> 2021 | P7: =P6 -> 0.5 | Q7: x | R7: =E19 -> 55800 | S7: + | T7: =T6 -> 0.35 | U7: x | V7: =F19 -> 23900 | W7: + | X7: =X6 -> 0.15 | Y7: x | Z7: =G19 -> 19800 | AA7: =P7*R7+T7*V7+X7*Z7 -> 39235 | AB7: |
A8: Given | C8: independent estimate of ultimate claims for all AYs | H8: 423000 | N8: | | O8: =O7+1 -> 2022 | P8: =P7 -> 0.5 | Q8: x | R8: =E20 -> 69200 | S8: + | T8: =T7 -> 0.35 | U8: x | V8: =F20 -> 29600 | W8: + | X8: =X7 -> 0.15 | Y8: x | Z8: =G20 -> 24600 | AA8: =P8*R8+T8*V8+X8*Z8 -> 48650 | AB8: |
N9: | | O9: =O8+1 -> 2023 | P9: 0.5 | Q9: x | R9: 87900 | S9: + | T9: 0.35 | U9: x | V9: 36100 | W9: + | X9: 0.15 | Y9: x | Z9: 31700 | AA9: 61340 | AB9: |
C10: % of ULAE spend on opening claims | G10: 0.5 | N10: | | O10: 2024 | P10: 0.5 | Q10: x | R10: 111600 | S10: + | T10: 0.35 | U10: x | V10: 43300 | W10: + | X10: 0.15 | Y10: x | Z10: 39900 | AA10: 76940 | AB10: |
C11: % of ULAE spend on maintaining claims | G11: 0.35 | N11: | | O11: 2025 | P11: 0.5 | Q11: x | R11: 142800 | S11: + | T11: 0.35 | U11: x | V11: 52000 | W11: + | X11: 0.15 | Y11: x | Z11: 49100 | AA11: 96965 | AB11: |
C12: % of ULAE spend on closing claims | G12: 0.15 | N12: | | R12: =SUM(R7:R11) -> 467300 | V12: =SUM(V7:V11) -> 184900 | Z12: =SUM(Z7:Z11) -> 165100 | AA12: =SUM(AA7:AA11) -> 323130 | AB12: |
N13: | | AB13: |
E14: ultimate | G14: ultimate | N14: | | O14: Step 1b | P14: select a ULAE ratio W: | S14: W = M / B | AB14: |
D15: paid | E15: for clms | F15: paid | G15: for clms | N15: | | AB15: |
D16: ULAE | E16: reported | F16: loss | G16: closed | N16: | | P16: paid | Q16: claims | R16: ULAE | T16: If you decided at the beginning you are going to use a weighted average | AB16: |
D17: in CY | E17: in CY | F17: in CY | G17: in CY | N17: | | P17: ULAE | Q17: basis | R17: ratio | T17: for B then you only need the totals line in Step 1a and 1b. The problem with | AB17: |
C18: CY | D18: M | E18: R | F18: P | G18: C | N18: | | O18: CY | P18: M | Q18: B | R18: W | T18: that however is that you may not see trends in the ULAE ratio. | AB18: |
C19: 2021 | D19: 4500 | E19: 55800 | F19: 23900 | G19: 19800 | N19: | | O19: =C19 -> 2021 | P19: =D19 -> 4500 | Q19: =AA7 -> 39235 | R19: =IFERROR(ROUND(P19/Q19,3),"") -> 0.115 | AB19: |
C20: 2022 | D20: 4500 | E20: 69200 | F20: 29600 | G20: 24600 | N20: | | O20: =O19+1 -> 2022 | P20: =D20 -> 4500 | Q20: =AA8 -> 48650 | R20: =IFERROR(ROUND(P20/Q20,3),"") -> 0.092 | AB20: |
C21: 2023 | D21: 4700 | E21: 87900 | F21: 36100 | G21: 31700 | N21: | | O21: =O20+1 -> 2023 | P21: 4700 | Q21: 61340 | R21: 0.077 | AB21: |
C22: 2024 | D22: 4800 | E22: 111600 | F22: 43300 | G22: 39900 | N22: | | O22: 2024 | P22: 4800 | Q22: 76940 | R22: 0.062 | AB22: |
C23: 2025 | D23: 5200 | E23: 142800 | F23: 52000 | G23: 49100 | N23: | | O23: 2025 | P23: 5200 | Q23: 96965 | R23: 0.054 | AB23: |
N24: | | P24: =SUM(P19:P23) -> 23700 | Q24: =SUM(Q19:Q23) -> 323130 | R24: =IFERROR(ROUND(P24/Q24,5),"") -> 0.07335 | S24: <===== | T24: you can select this weighted average or choose another reasonable ratio | AB24: |
N25: | | AB25: |
N26: | | O26: Step 2a | P26: calculate the estimate of unpaid ULAE using the Expected Claims approach | AB26: |
N27: | | AB27: |
N28: | | P28: unpd ULAE | Q28: = | R28: W | S28: x | T28: L | U28: - | V28: M | AB28: |
N29: | | Q29: = | R29: =R24 -> 0.07335 | S29: x | T29: =H8 -> 423000 | U29: - | V29: =P24 -> 23700 | AB29: |
N30: | | Q30: = | R30: =R29*T29-V29 -> 7327.05 | AB30: |
N31: | | AB31: |
N32: | | O32: Step 2b | P32: calculate the estimate of unpaid ULAE using the Bornhuetter-Ferguson approach | AB32: |
N33: | | AB33: |
N34: | | P34: unpd ULAE | Q34: = | R34: W | S34: x | T34: ( | U34: L | V34: - | W34: B | X34: ) | AB34: |
N35: | | Q35: = | R35: =R24 -> 0.07335 | S35: x | T35: ( | U35: =H8 -> 423000 | V35: - | W35: =Q24 -> 323130 | X35: ) | AB35: |
N36: | | Q36: = | R36: =R35*(U35-W35) -> 7325.4645 | AB36: |
N37: | | AB37: |
N38: | | O38: Step 2b | P38: calculate the estimate of unpaid ULAE using the Development approach | AB38: |
N39: | | AB39: |
N40: | | P40: unpd ULAE | Q40: = | R40: M | S40: x | T40: ( | U40: L | V40: / | W40: B | X40: - | Y40: 1 | Z40: ) | AB40: |
N41: | | Q41: = | R41: =P24 -> 23700 | S41: x | T41: ( | U41: =H8 -> 423000 | V41: / | W41: =Q24 -> 323130 | X41: - | Y41: 1 | Z41: ) | AB41: |
N42: | | Q42: = | R42: =R41*(U41/W41-1) -> 7324.974468 | AB42: |
N43: | | AB43: |
N44: | | O44: Notes: | P44: You get the same answer for all 3 methods if your selection for W is the weighted average. You also have | AB44: |
N45: | | P45: to keep enough decimal places or they may differ due to rounding. | AB45: |
N46: | | AB46: |
N47: | | P47: If you choose something other than the weighted average, which could be entirely reasonable depending | AB47: |
N48: | | P48: on the circumstances then you won't in general get the same answer. | AB48: |
N49: | | AB49: |
N50: | | AB50: |
N51: | | AB51: |
N52: | | AB52: |
N53: | | AB53: |
N54: | | AB54: |
N55: | | AB55: |
N56: | | AB56: |
N57: | | AB57: |
N58: | | AB58: |
N59: | | AB59: |
A60: ---- | B60: ---- | C60: ---- | D60: ---- | E60: ---- | F60: ---- | G60: ---- | H60: ---- | I60: ---- | J60: ---- | K60: ---- | L60: ---- | M60: ---- | N60: ---- | O60: ---- | P60: ---- | Q60: ---- | R60: ---- | S60: ---- | T60: ---- | U60: ---- | V60: ---- | W60: ---- | X60: ---- | Y60: ---- | Z60: ---- | AA60: ---- | AB60: ----
